bitfinex/quotes_ETHUSD_20251004
["timestamp","ask_amount","ask_price","bid_price","bid_amount"]
[1759575533037,0.002,4486.7,4486.6,2.509]
[1759575533471,0.002,4486.7,4486.6,2.9422]
[1759575533845,0.002,4486.7,4486.6,2.509]
[1759575534493,0.002,4486.7,4486.6,2.9422]
[1759575538076,0.002,4486.7,4486.6,3.55880859]
[1759575541447,0.002,4486.7,4486.6,3.12560859]
[1759575541887,0.002,4486.7,4486.6,3.67000859]
[1759575543158,0.002,4486.7,4486.6,3.64772]
[1759575544679,0.002,4486.7,4486.6,0.70552]
[1759575544886,0.002,4486.7,4486.6,3.21452]
[1759575545707,0.002,4486.7,4486.6,3.64772]
[1759575546265,0.002,4486.7,4486.6,0.70552]
[1759575546464,0.002,4486.7,4486.6,3.21452]
[1759575547266,0.002,4486.7,4486.6,3.64772]
[1759575547900,0.002,4486.7,4486.6,0.70552]
[1759575548102,0.002,4486.7,4486.6,3.21452]
[1759575553714,0.002,4486.7,4486.6,3.64772]
[1759575553914,0.002,4486.7,4486.6,3.89368763]
[1759575555551,0.002,4486.7,4486.6,3.46048763]
[1759575555729,0.002,4486.7,4486.6,3.64772]
[1759575557149,0.002,4486.7,4486.6,5.89886785]
[1759575557338,0.002,4486.7,4486.6,5.87657926]
[1759575560418,0.002,4486.7,4486.6,3.64772]
[1759575560853,0.002,4486.7,4486.6,3.23680859]
[1759575561174,0.002,4486.7,4486.6,5.46566785]
[1759575561347,0.002,4486.7,4486.6,7.84337926]
[1759575561666,0.002,4486.7,4486.6,9.47666776]
[1759575561855,0.002,4486.7,4486.6,9.04346776]
[1759575562058,0.002,4486.7,4486.6,9.47666776]
[1759575562256,0.002,4486.8,4486.7,5.26240959]
[1759575562455,0.002,4487.2,4486.9,2.22870334]
[1759575562658,0.002,4487.2,4487.1,0.9116899]
[1759575562856,0.002,4487.2,4487.1,0.1112]
[1759575563048,0.4353,4487.2,4487.1,0.1112]
[1759575563248,0.002,4487.2,4487.1,0.45316899]
[1759575565445,0.4353,4487.2,4487.1,0.45316899]
[1759575566666,0.002,4487.2,4487.1,0.45316899]
[1759575568887,0.4353,4487.2,4487.1,0.45316899]
[1759575571294,0.002,4487.2,4487.1,0.45316899]
[1759575574618,0.002,4487.2,4487.1,0.47545509]
[1759575575376,0.002,4487.2,4487.1,1.08676899]
[1759575576374,0.002,4487.2,4487.1,4.08676899]
[1759575576568,0.002,4487.2,4487.1,4.88732719]
[1759575576795,0.4478,4487.2,4487.1,6.76172719]
[1759575576982,0.4478,4487.2,4487.1,6.4197582]
[1759575577185,0.002,4487.2,4487.1,6.4197582]
[1759575577374,0.002,4487.2,4487.1,7.8478109]
[1759575579370,0.002,4487.2,4487.1,5.6192]
[1759575580903,0.4478,4487.2,4487.1,5.6192]
[1759575581108,0.4478,4487.2,4487.1,6.41984891]
[1759575582004,0.4478,4487.2,4487.1,3.91184891]
[1759575582204,0.4478,4487.2,4487.1,6.41984891]
[1759575584139,0.4478,4487.2,4487.1,3.91184891]
[1759575584429,0.4478,4487.2,4487.1,5.6192]
[1759575584814,0.002,4487.2,4487.1,5.6192]
[1759575586538,0.002,4487.2,4487.1,6.35819345]
[1759575588282,0.002,4487.2,4487.1,3.85019345]
[1759575588465,0.002,4487.2,4487.1,6.35819345]
[1759575589360,0.002,4487.2,4487.1,8.58680435]
[1759575589540,0.002,4487.2,4487.1,9.02000435]
[1759575590245,0.002,4487.2,4487.1,7.52550683]
[1759575590427,0.002,4487.2,4487.1,7.06590248]
[1759575590843,0.002,4487.2,4487.1,9.29451338]
[1759575591359,0.002,4487.2,4487.1,4.55790248]
[1759575591551,0.002,4487.2,4487.1,7.06590248]
[1759575592458,0.002,4487.2,4487.1,5.6192]
[1759575593074,0.4445,4487.2,4487.1,5.6192]
[1759575596991,0.002,4487.2,4487.1,5.6192]
[1759575597295,0.4445,4487.2,4487.1,5.6192]
[1759575599485,0.4445,4487.2,4487.1,3.1112]
[1759575599690,0.4445,4487.2,4487.1,5.6192]
[1759575601055,0.4445,4487.2,4487.1,3.1112]
[1759575601376,0.4445,4487.2,4487.1,5.6192]
[1759575608098,0.002,4487.2,4487.1,3.1112]
[1759575608413,2.78426124,4487.2,4487.1,5.508]
[1759575608562,3.38130714,4487.2,4487.1,5.508]
[1759575610037,3.38130714,4487.2,4487.1,3.0]
[1759575610348,3.38130714,4487.2,4487.1,5.508]
[1759575614746,3.38130714,4487.2,4487.1,3.0]
[1759575614951,5.78130714,4487.2,4487.1,3.0]
[1759575617384,5.77948372,4487.2,4487.1,3.0]
[1759575617671,2.4,4487.1,4487.0,0.001]
[1759575617871,9.68957707,4487.1,4487.0,0.001]
[1759575618038,10.13207707,4487.1,4487.0,0.001]
[1759575621087,8.98574217,4487.1,4487.0,0.001]
[1759575621254,12.64007707,4487.1,4487.0,0.001]
[1759575622641,2.22910768,4486.1,4486.0,1e-08]
[1759575623195,5.08050768,4486.1,4486.0,1e-08]
[1759575623486,5.16973215,4486.1,4486.0,1e-08]
[1759575624900,4.71833215,4486.1,4486.0,1e-08]
[1759575625108,2.31833215,4486.1,4486.0,1e-08]
[1759575625812,2.31833215,4486.1,4486.0,0.43320001]
[1759575627219,2.31833215,4486.1,4486.0,1e-08]
[1759575628662,2.31833215,4486.1,4486.0,2.94220001]
[1759575630013,0.08922447,4486.1,4486.0,3.23874932]
[1759575630172,2.31833215,4486.1,4486.0,3.23874932]
[1759575630374,0.08922447,4486.1,4486.0,3.23874932]
[1759575631006,2.31833215,4486.1,4486.0,3.23874932]
[1759575631671,6.68588159,4487.1,4486.0,3.23874932]
[1759575631876,2.2286109,4487.1,4486.1,0.45549107]
[1759575632082,2.89795655,4486.4,4486.1,0.45549107]
[1759575632280,2.89796388,4486.4,4486.2,0.32610404]
[1759575632513,2.89796388,4486.4,4486.3,0.45549008]
[1759575633016,0.66898208,4486.4,4486.3,0.45549008]
[1759575634618,2.89794071,4486.4,4486.3,0.45549008]
[1759575634825,0.66898208,4486.4,4486.3,0.45549008]
[1759575635228,2.89794071,4486.4,4486.3,0.45549008]
[1759575635934,2.89794071,4486.4,4486.3,0.02229008]
[1759575636160,0.66898208,4486.4,4486.3,0.45549008]
[1759575637448,2.89794071,4486.4,4486.3,0.45549008]
[1759575637760,2.89794071,4486.4,4486.2,14.82610404]
[1759575637959,0.66898208,4486.4,4486.3,0.79191434]
[1759575638457,2.22892503,4486.5,4486.3,0.79191434]
[1759575638609,2.22892503,4486.5,4486.4,2.509]
[1759575638809,0.66892391,4486.7,4486.4,2.509]
[1759575639014,0.1112,4486.9,4486.4,2.509]
[1759575639015,0.1112,4486.9,4486.5,2.20338051]
[1759575639233,0.002,4487.1,4486.5,2.20338051]
[1759575639234,2.34181855,4487.1,4486.5,2.20338051]
[1759575639451,2.22876072,4486.8,4486.6,0.4332]
[1759575639646,0.66889706,4486.9,4486.7,0.45548809]
[1759575639812,2.8976073,4486.9,4486.8,2.509]
[1759575641466,0.66889706,4486.9,4486.8,2.509]
[1759575641833,2.8976073,4486.9,4486.8,2.509]
[1759575642854,0.66889706,4486.9,4486.8,2.509]
[1759575643253,0.66889706,4486.9,4486.8,17.009]
[1759575643569,2.22866977,4487.0,4486.8,18.05377023]
[1759575643735,2.89948659,4487.1,4486.8,17.4422]
[1759575644068,2.89948659,4487.1,4486.8,17.009]
[1759575644268,0.67086425,4487.1,4486.9,0.0222871]
[1759575644437,0.002,4487.1,4487.0,0.4332]
[1759575644630,0.002,4487.1,4487.0,2.17964871]
[1759575644861,0.002,4487.1,4487.0,1.74644871]
[1759575645070,2.22866057,4487.0,4486.9,0.1112]
[1759575645254,2.22866057,4487.0,4486.8,14.5]
[1759575645454,2.22866057,4487.0,4486.9,2.508]
[1759575646857,2.23062591,4487.1,4486.9,2.508]
[1759575647244,2.22866057,4487.0,4486.9,2.508]
[1759575648480,0.002,4487.1,4486.9,2.508]
[1759575649175,2.23061463,4487.1,4486.9,2.508]
[1759575649644,0.002,4487.1,4487.0,0.0222866]
[1759575652347,2.2306109,4487.1,4486.7,14.6112]
[1759575652536,2.2287015,4487.0,4486.8,2.508]
[1759575652740,0.002,4487.1,4486.8,2.508]
[1759575652974,2.23065536,4487.1,4486.8,2.508]
[1759575653474,2.23062531,4487.1,4486.8,2.508]
[1759575653674,0.002,4487.1,4486.8,2.508]
[1759575653874,0.002,4487.1,4486.9,0.4554871]
[1759575654080,2.23061291,4487.1,4487.0,2.508]
[1759575654255,0.002,4487.1,4487.0,2.508]
[1759575654456,0.002,4487.1,4487.0,2.5302866]
[1759575654842,2.2306109,4487.1,4487.0,2.508]
[1759575655895,2.2306109,4487.1,4487.0,17.008]
[1759575656573,0.002,4487.1,4487.0,17.008]
[1759575656990,0.002,4487.1,4487.0,17.4412]
[1759575658299,0.002,4487.1,4487.0,17.008]
[1759575658811,2.2306109,4487.1,4487.0,2.508]
[1759575659311,2.6623109,4487.1,4487.0,2.508]
[1759575661021,0.4337,4487.1,4487.0,2.508]
[1759575661478,0.4337,4487.1,4486.8,14.5]
[1759575661682,0.4337,4487.1,4486.9,2.508]
[1759575662022,0.4337,4487.1,4486.8,14.5]
[1759575662231,0.4317,4487.0,4486.7,0.1112]
[1759575662385,2.22875991,4486.8,4486.7,0.1112]
[1759575662605,2.66045991,4486.8,4486.7,2.6192]
[1759575664139,2.22887622,4486.6,4486.0,14.50000001]
[1759575664312,2.66057622,4486.6,4486.3,0.1112]
[1759575664507,0.4317,4486.5,4486.4,2.508]
[1759575664907,2.66064633,4486.5,4486.4,2.508]
[1759575665147,0.4317,4486.5,4486.4,2.508]
[1759575668413,2.22886966,4486.6,4486.4,14.5]
[1759575668611,0.4317,4486.5,4486.3,0.1112]
[1759575668855,0.1112,4486.9,4486.4,2.508]
[1759575669214,0.5429,4486.9,4486.4,2.508]
[1759575669434,0.1112,4486.9,4486.4,2.508]
[1759575669637,0.1112,4486.9,4486.5,0.45548908]
[1759575669821,0.002,4487.1,4486.5,0.45548908]
[1759575669822,0.002,4487.1,4486.7,0.1112]
[1759575670050,0.002,4487.1,4486.8,2.53028759]
[1759575670256,0.002,4487.1,4486.8,2.96348759]
[1759575670455,0.002,4487.1,4486.9,0.4332]
[1759575670672,0.002,4487.1,4487.0,0.0222866]
[1759575670872,0.002,4487.1,4487.0,0.4554866]
[1759575671275,0.002,4487.1,4487.0,0.0222866]
[1759575671582,0.002,4487.1,4486.9,0.0222871]
[1759575671939,0.002,4487.1,4486.9,0.4554871]
[1759575672758,0.002,4487.1,4486.9,14.9554871]
[1759575673079,0.002,4487.1,4486.9,14.9332]
[1759575673582,0.002,4487.1,4487.0,2.9412]
[1759575673989,0.002,4487.1,4487.0,2.9634866]
[1759575674355,0.002,4487.1,4487.0,2.5302866]
[1759575675460,0.002,4487.1,4487.0,2.9634866]
[1759575676253,0.002,4487.1,4487.0,2.5302866]
[1759575678142,0.002,4487.1,4487.0,2.90495423]
[1759575678279,0.002,4487.1,4487.0,5.05230289]
[1759575678623,0.002,4487.1,4487.0,5.03001629]
[1759575678777,0.002,4487.1,4487.0,2.88266763]
[1759575678982,0.002,4487.1,4487.0,17.1414866]
[1759575679181,0.002,4487.1,4487.0,17.5524]
[1759575679398,0.002,4487.1,4487.0,17.1192]
[1759575679794,0.002,4487.1,4487.0,20.0445282]
[1759575680020,0.002,4487.1,4487.0,22.32214718]
[1759575681092,0.002,4487.1,4487.0,24.15648203]
[1759575681313,0.002,4487.1,4487.0,25.35574718]
[1759575681984,0.002,4487.1,4487.0,25.46878138]
[1759575682685,0.002,4487.5,4487.4,2.86206191]
[1759575682901,0.002,4488.3,4487.5,2.86201225]
[1759575683215,0.002,4488.3,4487.5,17.39496534]
[1759575683618,0.002,4488.3,4487.5,31.55568134]
[1759575683828,0.002,4488.3,4487.5,32.44449343]
[1759575684495,0.002,4488.3,4487.7,0.6336]
[1759575684691,0.002,4488.3,4487.7,3.16388312]
[1759575684896,0.002,4488.3,4487.7,9.79992715]
[1759575685147,0.002,4488.3,4487.7,9.86967638]
[1759575685353,0.002,4488.3,4487.7,24.36967638]
[1759575685561,0.002,4488.4,4488.3,3.0336]
[1759575685743,0.002,4488.4,4488.3,8.03549566]
[1759575685944,0.002,4488.4,4488.3,9.18164525]
[1759575686232,0.002,4488.4,4488.3,24.11484525]
[1759575687566,0.002,4488.6,4488.5,0.6336]
[1759575687768,0.002,4488.6,4488.5,5.66547123]
[1759575687953,0.002,4488.6,4488.5,6.07639208]
[1759575688140,0.002,4488.6,4488.5,8.35401106]
[1759575688345,0.01,4488.9,4488.8,2.86136688]
[1759575688640,0.4598,4489.8,4488.8,2.86136688]
[1759575688641,0.4598,4489.8,4489.1,0.6336]
[1759575688865,0.4598,4489.8,4489.2,2.80295198]
[1759575689040,0.4598,4489.8,4489.3,0.3236152]
[1759575689240,0.01,4489.9,4489.4,17.007]
[1759575689566,0.4336,4489.8,4489.4,17.007]
[1759575689774,0.4336,4489.7,4489.4,17.007]
[1759575689937,0.4336,4489.6,4489.4,17.007]
[1759575690138,0.4336,4489.6,4489.5,1.73306152]
[1759575690634,0.4336,4489.6,4489.5,4.24006152]
[1759575690855,0.4336,4489.6,4489.5,1.73306152]
[1759575691043,0.4336,4489.6,4489.5,4.24006152]
[1759575691566,0.4436,4489.9,4489.5,4.24006152]
[1759575691740,0.01,4489.9,4489.5,4.24006152]
[1759575691942,0.4336,4489.8,4489.5,2.507]
[1759575692147,0.01,4489.9,4489.6,14.5]
[1759575692452,0.4336,4489.8,4489.7,2.507]
[1759575695285,0.01,4489.9,4489.7,2.507]
[1759575695489,0.4336,4489.8,4489.7,2.6182]
[1759575695692,0.4336,4489.8,4489.7,17.1182]
[1759575696703,0.01,4489.9,4489.7,17.3918763]
[1759575696903,0.01,4489.9,4489.7,17.85379719]
[1759575697090,0.01,4489.9,4489.8,0.2736763]
[1759575697968,0.4436,4489.9,4489.8,0.2736763]
[1759575699097,0.4436,4489.9,4489.7,17.58012089]
[1759575699879,0.4436,4489.9,4489.7,20.58012089]
[1759575700225,0.01,4489.9,4489.8,1.96269646]
[1759575701276,0.4436,4489.9,4489.8,1.96269646]
[1759575702309,0.4456,4489.9,4489.8,1.96269646]
[1759575703675,0.4456,4489.9,4489.7,6.08012089]
[1759575703898,0.4336,4489.8,4489.7,6.08012089]
[1759575706309,0.012,4489.9,4489.7,3.57312089]
[1759575706531,0.4336,4489.8,4489.7,6.08012089]
[1759575708627,0.012,4489.9,4489.7,6.08012089]
[1759575708823,0.012,4489.9,4489.8,0.60801209]
[1759575711321,0.4734,4489.9,4489.8,0.60801209]
[1759575711730,0.4734,4489.9,4489.8,3.11401209]
[1759575713363,2.70062109,4489.9,4489.8,2.506]
[1759575713968,0.4734,4489.9,4489.8,2.506]
[1759575714140,0.4734,4489.9,4489.7,3.1112]
[1759575714348,2.23922109,4489.9,4489.8,2.506]
[1759575714831,2.70062109,4489.9,4489.8,2.506]
[1759575715344,0.4734,4489.9,4489.8,2.506]
[1759575716349,0.4734,4489.9,4489.7,3.1112]
[1759575716553,0.4734,4489.9,4489.8,2.506]
[1759575716554,2.23922784,4489.9,4489.8,2.506]
[1759575716762,0.012,4489.9,4489.8,2.506]
[1759575717194,0.4734,4489.9,4489.8,2.506]
[1759575717867,0.012,4489.9,4489.8,2.506]
[1759575721782,2.70062109,4489.9,4489.8,2.506]
[1759575723872,2.70063738,4489.9,4489.7,3.0]
[1759575724070,2.23923738,4489.9,4489.8,2.506]
[1759575724377,2.90768583,4489.9,4489.8,2.506]
[1759575724546,3.36908583,4489.9,4489.8,2.506]
[1759575725383,3.36906954,4489.9,4489.8,2.506]
[1759575726990,2.70062109,4489.9,4489.8,2.506]
[1759575731085,2.23922109,4489.9,4489.8,2.506]
[1759575731884,2.70062109,4489.9,4489.8,2.506]
[1759575733007,2.2272707,4489.8,4489.7,3.0]
[1759575733313,2.6886707,4489.8,4489.7,5.506]
[1759575733652,2.6886707,4489.8,4489.7,3.0]
[1759575733896,2.6886707,4489.8,4489.7,5.506]
[1759575738903,2.6886707,4489.8,4489.7,3.0]
[1759575739397,3.86109136,4489.8,4489.7,5.506]
[1759575739893,3.86109136,4489.8,4489.7,3.0]
[1759575740208,3.86109136,4489.8,4489.7,5.506]
[1759575752515,2.89578618,4489.8,4489.7,5.506]
[1759575752683,2.3384707,4489.8,4489.7,5.9354]
[1759575753187,2.3404707,4489.8,4489.7,5.9354]
[1759575754601,2.2292707,4489.8,4489.7,5.9354]
[1759575755179,0.002,4489.8,4489.7,5.9354]
[1759575755375,0.002,4489.8,4489.7,6.54006]
[1759575757233,0.002,4489.8,4489.7,6.8137363]
[1759575758019,0.002,4489.8,4489.7,6.54006]
[1759575766760,0.002,4489.8,4489.7,6.11066]
[1759575771768,0.002,4489.8,4489.7,6.54386]
[1759575772341,0.002,4489.8,4489.7,6.11066]
[1759575777577,0.002,4489.8,4489.7,9.04485661]
[1759575777781,0.002,4489.8,4489.7,24.34113685]
[1759575778458,0.002,4489.8,4489.7,23.54485661]
[1759575780905,0.002,4489.8,4489.7,6.8175363]
[1759575781093,0.002,4489.8,4489.7,6.3843363]
[1759575781476,0.002,4489.8,4489.7,21.4105757]
[1759575781894,0.002,4489.8,4489.7,20.61066]
[1759575783675,0.002,4489.8,4489.7,22.83798031]
[1759575783986,0.002,4489.8,4489.7,23.11165661]
[1759575784187,0.002,4489.8,4489.7,23.54485661]
[1759575784372,0.002,4489.8,4489.7,24.74269691]
[1759575785277,0.002,4489.8,4489.7,23.54485661]
[1759575785478,0.002,4489.8,4489.7,24.74269691]
[1759575787387,0.002,4489.8,4489.7,24.30949691]
[1759575788487,0.002,4489.8,4489.7,22.0821766]
[1759575788695,0.002,4489.8,4489.7,7.3085003]
[1759575789128,0.002,4489.8,4489.7,21.8085003]
[1759575789326,0.4309,4489.8,4489.7,21.8085003]
[1759575790321,0.002,4489.8,4489.7,22.83798031]
[1759575790528,0.002,4489.8,4489.7,24.30949691]
[1759575790738,0.002,4489.8,4489.7,23.74525661]
[1759575791695,0.002,4489.8,4489.7,22.08483664]
[1759575791893,0.002,4489.8,4489.7,20.8843363]
[1759575792122,0.002,4489.8,4489.7,23.11165661]
[1759575793095,0.002,4489.8,4489.7,24.17845661]
[1759575793930,0.002,4489.8,4489.7,23.74525661]
[1759575794130,0.002,4489.8,4489.7,24.17845661]
[1759575794299,0.002,4489.8,4489.7,26.57845661]
[1759575795008,0.002,4489.8,4489.7,12.07845661]
[1759575795207,0.012,4489.9,4489.8,15.8961737]
[1759575795534,0.012,4489.9,4489.8,35.39120798]
[1759575796330,0.012,4489.9,4489.8,35.77285198]
[1759575796828,0.012,4489.9,4489.8,27.07749698]
[1759575797328,0.012,4489.9,4489.8,29.45048998]
[1759575797710,0.012,4489.9,4489.8,29.13179398]
[1759575797961,0.012,4489.9,4489.8,27.32007298]
[1759575798120,0.012,4489.9,4489.8,19.81121898]
[1759575798320,0.4409,4489.9,4489.8,22.31721898]
[1759575798520,0.4409,4489.9,4489.8,24.54448968]
[1759575799740,0.4409,4489.9,4489.8,22.31721898]
[1759575799937,0.4409,4489.9,4489.8,21.01080662]
[1759575800137,0.4409,4489.9,4489.8,4.78361898]
[1759575800438,2.67727026,4489.9,4489.7,0.79978024]
[1759575800624,2.67727026,4489.9,4489.3,0.79978024]
[1759575800625,0.438,4489.8,4489.3,0.79978024]
[1759575800827,0.438,4489.7,4489.4,2.506]
[1759575801026,3.01892272,4489.9,4489.4,2.506]
[1759575801231,0.438,4489.6,4489.4,2.506]
[1759575801524,3.01892272,4489.9,4489.4,2.506]
[1759575801525,0.438,4489.5,4489.4,2.84769802]
[1759575801934,0.438,4489.8,4489.4,3.14364901]
[1759575802140,0.438,4489.8,4489.5,0.2736763]
[1759575802339,0.438,4489.7,4489.6,2.52827369]
[1759575802924,0.012,4489.9,4489.6,2.52827369]
[1759575802925,0.012,4489.9,4489.6,2.8908763]
[1759575803259,0.438,4489.8,4489.6,3.24318573]
[1759575803554,0.438,4489.7,4489.6,3.24318573]
[1759575808272,0.438,4489.7,4489.6,2.6172]
[1759575809426,0.438,4489.7,4489.6,5.6172]
[1759575810759,0.002,4489.8,4489.6,5.8908763]
[1759575811259,0.002,4489.8,4489.6,6.69065654]
[1759575811467,0.002,4489.8,4489.7,0.89180407]
[1759575813341,0.002,4489.8,4489.6,6.69065654]
[1759575815380,0.002,4489.8,4489.6,5.8908763]
[1759575815575,0.002,4489.8,4489.6,3.3848763]
[1759575815576,0.4497,4489.7,4489.6,3.3848763]
[1759575815743,0.4497,4489.7,4489.6,5.8908763]
[1759575816275,0.44,4490.3,4489.7,2.6894477]
[1759575816276,0.002,4490.3,4489.7,2.6894477]
[1759575816579,0.002,4490.3,4490.0,1.43296038]
[1759575816810,0.002,4490.3,4490.1,2.7954477]
[1759575816935,0.002,4490.3,4490.0,1.43296038]
[1759575816936,0.4517,4490.3,4490.2,2.506]
[1759575817276,0.002,4490.3,4490.2,2.506]
[1759575817680,0.4517,4490.3,4490.2,2.506]
[1759575820365,0.002,4490.3,4490.2,2.506]
[1759575822303,0.4517,4490.3,4490.2,2.506]
[1759575826328,0.4517,4490.3,4490.2,2.6172]
[1759575827486,0.002,4490.3,4490.2,2.6172]
[1759575828227,0.002,4490.3,4490.2,5.43091408]
[1759575828435,0.002,4490.3,4490.2,5.40864336]
[1759575829028,0.002,4490.3,4490.2,5.84184336]
[1759575829231,0.002,4490.3,4490.2,5.40864336]
[1759575829436,0.002,4490.3,4490.2,3.18157107]
[1759575829618,0.002,4490.3,4490.2,3.20384179]
[1759575830639,0.002,4490.3,4490.2,5.72036178]
[1759575830801,0.002,4490.3,4490.2,5.69809106]
[1759575831200,0.002,4490.3,4490.2,6.33169106]
[1759575831444,0.002,4490.3,4490.2,7.9644787]
[1759575831915,0.002,4490.3,4490.2,6.76489106]
[1759575832334,0.002,4490.3,4490.2,22.46405975]
[1759575835936,0.002,4490.3,4490.2,22.55315722]
[1759575838658,0.002,4490.3,4490.2,22.11995722]
[1759575838858,0.002,4490.3,4490.2,7.61995722]
[1759575839376,0.002,4490.3,4490.2,22.11995722]
[1759575841251,0.002,4490.3,4490.2,19.89288493]
[1759575841646,0.002,4490.3,4490.2,22.11995722]
[1759575842590,0.002,4490.3,4490.2,18.40426854]
[1759575842803,0.002,4490.3,4490.2,1.39826854]
[1759575843091,0.4477,4490.3,4490.2,3.2498]
[1759575844673,0.4477,4490.3,4490.2,0.1112]
[1759575844885,0.4477,4490.3,4490.2,3.41587972]
[1759575845866,0.4477,4490.3,4490.2,0.91087972]
[1759575846052,0.4477,4490.3,4490.2,3.41587972]
[1759575847606,0.002,4490.3,4490.2,3.64377094]
[1759575847807,0.002,4490.3,4490.2,2.84409122]
[1759575848011,0.002,4490.3,4490.2,7.21565062]
[1759575848310,0.002,4490.3,4490.2,6.42741121]
[1759575851072,0.002,4490.3,4490.2,3.76713892]
[1759575851306,0.002,4490.3,4490.2,19.46696167]
[1759575851668,0.002,4490.3,4490.2,18.26713892]
[1759575852721,0.002,4490.3,4490.2,3.76713892]
[1759575852889,0.4477,4490.3,4490.2,3.5392477]
[1759575853214,0.4477,4490.3,4490.2,4.73910235]
[1759575853574,0.002,4490.3,4490.2,6.96617464]
[1759575854331,0.002,4490.3,4490.2,5.76631999]
[1759575854914,0.002,4490.3,4490.2,6.19951999]
[1759575855122,0.002,4490.3,4490.2,7.04218669]
[1759575856001,0.002,4490.3,4490.2,6.60898669]
[1759575856934,0.002,4490.3,4490.2,6.31953899]
[1759575857297,0.002,4490.3,4490.2,6.75273899]
[1759575857996,0.002,4490.3,4490.2,7.04218669]
[1759575858542,0.002,4490.3,4490.2,6.60898669]
[1759575859228,0.002,4490.3,4490.2,9.60898669]
[1759575861048,0.002,4490.3,4490.2,24.10898669]
[1759575861413,0.002,4490.3,4490.2,21.8819144]
[1759575862120,0.002,4490.3,4490.2,24.10898669]
[1759575865026,0.002,4490.3,4490.2,23.81953899]
[1759575865450,0.002,4490.3,4490.2,9.31953899]
[1759575866072,0.002,4490.3,4490.2,23.81953899]
[1759575866462,0.002,4490.3,4490.2,24.10898669]
[1759575868568,0.002,4490.3,4490.2,24.53768669]
[1759575869056,0.002,4490.3,4490.2,9.60898669]
[1759575869579,0.002,4490.3,4490.2,24.10898669]
[1759575872494,0.002,4490.3,4490.2,9.60898669]
[1759575872976,0.002,4490.3,4490.2,24.10898669]
[1759575875963,0.002,4490.3,4490.2,9.60898669]
[1759575876662,0.002,4490.3,4490.2,24.10898669]
[1759575879465,0.002,4490.3,4490.2,9.60898669]
[1759575880091,0.002,4490.3,4490.2,24.10898669]
[1759575881858,0.002,4490.3,4490.2,34.44732569]
[1759575882260,0.002,4490.3,4490.2,26.12398369]
[1759575887192,0.002,4490.3,4490.2,28.52398369]
[1759575888258,0.002,4490.3,4490.2,30.12326049]
[1759575888478,0.4544,4493.1,4490.3,24.985871]
[1759575888672,0.08908695,4492.5,4491.8,2.85987899]
[1759575888877,0.4544,4492.4,4491.8,19.46701667]
[1759575889076,2.22538959,4493.6,4491.8,32.96697062]
[1759575889277,0.4544,4492.5,4491.8,33.64357687]
[1759575889475,0.4544,4493.5,4492.0,2.22617987]
[1759575889763,0.4544,4493.2,4492.8,2.85938347]
[1759575890076,0.4544,4493.7,4492.8,5.71863114]
[1759575890288,0.4544,4493.7,4492.8,36.13320871]
[1759575890572,0.4814,4493.9,4493.4,3.65652907]
[1759575890777,0.4714,4493.8,4493.6,0.6336]
[1759575890986,0.4714,4493.8,4493.7,3.16085337]
[1759575891188,0.4714,4493.8,4493.7,5.69592199]
[1759575892393,0.01,4493.9,4493.8,0.6336]
[1759575892581,0.01,4493.9,4493.8,3.21313089]
[1759575892921,0.4814,4493.9,4493.8,3.19087801]
[1759575893417,0.01,4493.9,4493.8,3.98300839]
[1759575893995,0.01,4493.9,4493.8,18.95550839]
[1759575894392,0.01,4493.9,4493.8,33.45550839]
[1759575895005,0.01,4493.9,4493.8,36.80637239]
[1759575895765,0.01,4494.9,4494.0,0.6336]
[1759575896022,0.4814,4494.9,4494.5,2.22489688]
[1759575896206,0.4814,4494.9,4494.6,2.85923876]
[1759575896207,0.4714,4494.8,4494.6,2.85923876]
[1759575896413,0.4714,4494.7,4494.6,2.85923876]
[1759575897483,0.4714,4494.7,4494.6,2.83698984]
[1759575898001,0.4714,4494.7,4494.6,17.33698984]
[1759575898518,0.4714,4494.7,4494.6,0.44318984]
[1759575898723,0.4714,4494.7,4494.6,2.6162]
[1759575899786,2.69624259,4494.7,4494.6,0.1112]
[1759575899991,2.69624259,4494.7,4494.6,2.505]
[1759575900713,2.22494159,4494.5,4494.4,0.1112]
[1759575900913,2.22523709,4494.0,4492.9,0.57186311]
[1759575901112,0.97562149,4494.7,4493.6,0.1112]
[1759575901113,0.4714,4493.9,4493.6,0.1112]
[1759575901314,0.4714,4493.9,4493.7,2.506]
[1759575901621,0.4714,4493.9,4493.6,0.1112]
[1759575901622,0.1112,4494.2,4493.8,2.506]
[1759575901910,2.22513962,4494.1,4493.8,2.506]
[1759575902228,2.6965998,4494.0,4493.8,2.506]
[1759575902403,0.4714,4493.9,4493.8,2.506]
[1759575902924,0.4714,4493.9,4493.6,0.1112]
[1759575903128,0.4714,4493.9,4493.7,2.506]
[1759575903332,2.69668817,4493.8,4493.7,2.506]
[1759575903535,2.22524664,4493.9,4493.7,2.506]
[1759575903686,0.1112,4494.2,4493.7,2.506]
[1759575903687,0.1112,4494.2,4493.8,0.02225288]
[1759575903886,0.4714,4494.4,4493.8,0.44460938]
[1759575904121,2.69639162,4494.4,4493.8,0.44460938]
[1759575904530,2.69639162,4494.4,4493.8,0.4223565]
[1759575904736,0.4714,4494.4,4493.8,0.44460938]
[1759575904959,0.4714,4494.4,4493.8,0.1112]
[1759575905249,0.4714,4494.4,4493.9,2.505]
[1759575905250,2.22522479,4494.0,4493.9,2.505]
[1759575905433,0.4714,4494.0,4493.9,2.506]